fUSD/lending_fUSD_20240429
["ID","MTS","AMOUNT","RATE_DAILY","PERIOD"]
[324824612,1714349444430,-500.0,0.00012999,2]
[324824613,1714349444439,-500.0,0.00012999,2]
[324824614,1714349444449,-500.0,0.00012999,2]
[324824615,1714349444458,-500.0,0.00012999,2]
[324824616,1714349444467,-500.0,0.00012999,2]
[324824617,1714349444482,-500.0,0.00012999,2]
[324824618,1714349444491,-500.0,0.00012999,2]
[324824619,1714349444500,-500.0,0.00012999,2]
[324824620,1714349444509,-500.0,0.00012999,2]
[324824621,1714349444519,-500.0,0.00012999,2]
[324824622,1714349444528,-500.0,0.00012999,2]
[324824623,1714349444537,-226.04,0.00012999,2]
[324824624,1714349444547,-588.74,0.00012999,2]
[324824625,1714349444561,-500.0,0.00012999,2]
[324824626,1714349444570,-500.0,0.00012999,2]
[324824627,1714349444579,-500.0,0.00012999,2]
[324824628,1714349444587,-500.0,0.00012999,2]
[324824629,1714349444598,-504.37,0.00012999,2]
[324824630,1714349444609,-500.0,0.00012999,2]
[324824631,1714349444618,-500.0,0.00012999,2]
[324824632,1714349444628,-500.0,0.00012999,2]
[324824633,1714349444639,-500.99,0.00012999,2]
[324824634,1714349444649,-500.0,0.00012999,2]
[324824635,1714349444658,-500.0,0.00012999,2]
[324824636,1714349444668,-500.0,0.00012999,2]
[324824637,1714349444678,-500.0,0.00012999,2]
[324824638,1714349444688,-625.97,0.00012999,2]
[324824639,1714349444697,-500.0,0.00012999,2]
[324824640,1714349444706,-604.28048784,0.00012999,2]
[324824641,1714349444715,-500.0,0.00012999,2]
[324824642,1714349444727,-505.03957192,0.00012999,2]
[324824643,1714349444736,-500.0,0.00012999,2]
[324824644,1714349444745,-596.04,0.00012999,2]
[324824645,1714349444754,-596.04,0.00012999,2]
[324824646,1714349444764,-596.04,0.00012999,2]
[324824647,1714349444772,-596.04,0.00012999,2]
[324824648,1714349444781,-596.04,0.00012999,2]
[324824649,1714349444791,-596.04,0.00012999,2]
[324824650,1714349444801,-596.04,0.00012999,2]
[324824651,1714349444811,-596.04,0.00012999,2]
[324824652,1714349444819,-596.04,0.00012999,2]
[324824653,1714349444829,-596.04,0.00012999,2]
[324824654,1714349444838,-596.04,0.00012999,2]
[324824655,1714349444846,-596.04,0.00012999,2]
[324824656,1714349444855,-596.04,0.00012999,2]
[324824657,1714349444864,-596.04,0.00012999,2]
[324824658,1714349444874,-596.04,0.00012999,2]
[324824659,1714349444882,-596.04,0.00012999,2]
[324824660,1714349444891,-596.04,0.00012999,2]
[324824661,1714349444902,-596.04,0.00012999,2]
[324824662,1714349444911,-596.04,0.00012999,2]
[324824663,1714349444920,-596.04,0.00012999,2]
[324824664,1714349444929,-596.26529181,0.00012999,2]
[324824665,1714349444938,-500.0,0.00012999,2]
[324824666,1714349444947,-1186.0,0.00013,2]
[324824667,1714349444956,-149469.68615708,0.00013,2]
[324824668,1714349444966,-3179964.96388933,0.00013,2]
[324824669,1714349444982,-1700.55,0.00013,2]
[324824670,1714349444999,-777.43132999,0.00013,2]
[324824671,1714349445010,-805.291941,0.00013,2]
[324824672,1714349445020,-3274.95383764,0.00013,2]
[324824673,1714349445032,-6324.1993945,0.00013,2]
[324824674,1714349445043,-4454.11466821,0.00013,2]
[324824675,1714349445067,-335.3193,0.00013,2]
[324824678,1714349445602,-1653.0962905,0.00012898,2]
[324824679,1714349445614,-18656.41098206,0.00013,2]
[324824680,1714349445664,-680.22,0.00013,2]
[324824681,1714349445676,-2952.70117865,0.00013,2]
[324824732,1714350631915,-539.55444738,9.483e-05,2]
[324824733,1714350631924,-132.74555262,9.484e-05,2]
[324824734,1714350632039,-648.98470363,9.484e-05,2]
[324824735,1714350632049,-221.63,9.485e-05,2]
[324824736,1714350632058,-207.98013381,0.0001,2]
[324824737,1714350632068,-787.56352096,0.00010998,2]
[324824738,1714350632078,-200.0,0.00011,2]
[324824739,1714350632088,-161.98,0.00011355,2]
[324824740,1714350632097,-740.59,0.00011357,2]
[324824741,1714350632107,-153.61,0.00011395,2]
[324824742,1714350632116,-150.0,0.00011421,2]
[324824743,1714350632126,-3784.87305022,0.00011435,2]
[324824744,1714350632165,-1587.52669612,0.00011435,2]
[324824745,1714350632292,-18527.60025366,0.00011435,2]
[324824746,1714350632302,-250.0,0.00011477,2]
[324824747,1714350632312,-1000.0,0.00011491,2]
[324824748,1714350632322,-150.99,0.00011495,2]
[324824749,1714350632331,-150.35,0.00011519,2]
[324824750,1714350632341,-153.61,0.00011543,2]
[324824751,1714350632350,-591.93,0.00011671,2]
[324824752,1714350632359,-153.61,0.00011692,2]
[324824754,1714350632369,-221.63,0.00011749,2]
[324824756,1714350632378,-165.3,0.00011784,2]
[324824758,1714350632387,-153.61,0.0001184,2]
[324824760,1714350632396,-153.61,0.00011988,2]
[324824762,1714350632406,-12641.25103849,0.00012,2]
[324824764,1714350632415,-409.24645721,0.00012086,2]
[324824765,1714350632425,-5000.0,0.00012086,2]
[324824766,1714350632434,-17808.55,0.00012087,2]
[324824767,1714350632443,-499.99,0.00012227,2]
[324824768,1714350632453,-2514.49612064,0.00012269,2]
[324824769,1714350632462,-161.59865266,0.00012271,2]
[324824770,1714350632471,-180.2,0.00012272,2]
[324824771,1714350632480,-519.0,0.00012329,2]
[324824772,1714350632490,-178.44,0.00012579,2]
[324824773,1714350632499,-150.0,0.00012579,2]
[324824774,1714350632509,-1009.0,0.000126,2]
[324824775,1714350632518,-1000.0,0.000127,2]
[324824776,1714350632527,-21274.07131696,0.00012766,2]
[324824777,1714350632536,-500.0,0.0001278,2]
[324824778,1714350632545,-304.0352,0.0001278,2]
[324824779,1714350632554,-314.08157108,0.00012795,2]
[324824780,1714350632564,-806.40716709,0.00012795,2]
[324824781,1714350632572,-806.40716708,0.00012798,2]
[324824782,1714350632581,-12202.8529,0.00012798,2]
[324824783,1714350632591,-1000.0,0.00012798,2]
[324824784,1714350632600,-168.72916332,0.00012799,2]
[324824785,1714350632609,-979.82244926,0.000128,2]
[324824786,1714350632618,-7500.0,0.000128,2]
[324824787,1714350632627,-806.40716708,0.000128,2]
[324824788,1714350632636,-382.95277325,0.00012868,2]
[324824789,1714350632645,-163.52064039,0.00012869,2]
[324824790,1714350632654,-1221.59250652,0.0001287,2]
[324824791,1714350632663,-519.0,0.00012877,2]
[324824792,1714350632672,-500.0,0.00012879,2]
[324824793,1714350632683,-500.0,0.00012879,2]
[324824794,1714350632692,-500.0,0.00012879,2]
[324824795,1714350632702,-192.08,0.00012879,2]
[324824796,1714350632712,-500.0,0.00012879,2]
[324824797,1714350632721,-578.3,0.00012879,2]
[324824798,1714350632730,-500.0,0.00012879,2]
[324824799,1714350632739,-500.0,0.00012879,2]
[324824800,1714350632748,-500.0,0.00012879,2]
[324824801,1714350632757,-500.0,0.00012879,2]
[324824802,1714350632766,-500.0,0.00012879,2]
[324824803,1714350632775,-500.0,0.00012879,2]
[324824804,1714350632784,-513.7,0.00012879,2]
[324824805,1714350632793,-1045.38,0.00012879,2]
[324824806,1714350632802,-500.0,0.00012879,2]
[324824807,1714350632811,-500.0,0.00012879,2]
[324824808,1714350632820,-500.0,0.00012879,2]
[324824809,1714350633028,-500.0,0.00012879,2]
[324824810,1714350633039,-539.03946758,0.00012879,2]
[324824811,1714350633048,-500.0,0.00012879,2]
[324824812,1714350633057,-189390.59328465,0.0001288,2]
[324824813,1714350637879,-500.0,0.00012879,2]
[324824814,1714350637889,-500.0,0.00012879,2]
[324824815,1714350637898,-500.0,0.00012879,2]
[324824816,1714350637909,-31350.7657889,0.0001288,2]
[324824817,1714350637920,-41636.998299,0.0001288,2]
[324824818,1714350638124,-435216.2147367,0.0001288,2]
[324824826,1714350639987,-500.0,0.00012879,2]
[324824828,1714350639996,-9521.51241479,0.0001288,2]
[324824830,1714350640007,-3056.75,0.0001288,2]
[324824836,1714350640059,-54723.93520209,0.0001288,2]
[324824837,1714350640070,-1000.0,0.00012895,2]
[324824838,1714350640079,-500.0,0.00012895,2]
[324824839,1714350640089,-1000.0,0.00012895,2]
[324824840,1714350640098,-1000.0,0.00012896,2]
[324824841,1714350640107,-1000.0,0.00012896,2]
[324824842,1714350640116,-1000.0,0.00012896,2]
[324824843,1714350640126,-1000.0,0.00012896,2]
[324824844,1714350640136,-500.0,0.00012896,2]
[324824845,1714350640145,-500.0,0.00012896,2]
[324824846,1714350640156,-202.16514885,0.00012898,2]
[324824847,1714350640165,-155.0,0.00012898,2]
[324824848,1714350640175,-769.12116984,0.00012898,2]
[324824849,1714350640186,-500.0,0.00012898,2]
[324824850,1714350640195,-500.0,0.00012898,2]
[324824851,1714350640205,-322.87290787,0.00012898,2]
[324824852,1714350640215,-500.0,0.00012898,2]
[324824853,1714350640224,-500.0,0.00012898,2]
[324824854,1714350640233,-500.0,0.00012898,2]
[324824855,1714350640244,-172.42,0.00012898,2]
[324824856,1714350640254,-618.21,0.00012898,2]
[324824857,1714350640264,-500.0,0.00012898,2]
[324824858,1714350640273,-362.9,0.00012898,2]
[324824859,1714350640283,-500.0,0.00012898,2]
[324824860,1714350640292,-463.36,0.00012898,2]
[324824861,1714350640302,-500.0,0.00012898,2]
[324824862,1714350640338,-559.28,0.00012898,2]
[324824863,1714350640348,-500.0,0.00012898,2]
[324824864,1714350640357,-500.0,0.00012898,2]
[324824865,1714350640367,-500.0,0.00012898,2]
[324824866,1714350640377,-500.0,0.00012898,2]
[324824867,1714350640387,-500.0,0.00012898,2]
[324824868,1714350640399,-295.46349358,0.00012898,2]
[324824869,1714350640410,-500.0,0.00012898,2]
[324824870,1714350640421,-500.0,0.00012898,2]
[324824871,1714350640430,-500.0,0.00012898,2]
[324824872,1714350640440,-500.0,0.00012898,2]
[324824873,1714350640450,-500.0,0.00012898,2]
[324824874,1714350640461,-500.0,0.00012898,2]
[324824875,1714350640470,-500.0,0.00012898,2]
[324824876,1714350640480,-500.0,0.00012898,2]
[324824877,1714350640488,-500.0,0.00012898,2]
[324824878,1714350640497,-500.0,0.00012898,2]
[324824879,1714350640507,-500.0,0.00012898,2]
[324824880,1714350640516,-500.0,0.00012898,2]
[324824881,1714350640525,-500.0,0.00012898,2]
[324824882,1714350640535,-500.0,0.00012898,2]
[324824883,1714350640543,-500.0,0.00012898,2]
[324824885,1714350640553,-563.49,0.00012898,2]
[324824887,1714350640562,-500.0,0.00012898,2]
[324824889,1714350640572,-500.0,0.00012898,2]
[324824891,1714350640581,-596.97,0.00012898,2]
[324824893,1714350640591,-914.88,0.00012898,2]
[324824895,1714350640600,-500.0,0.00012898,2]
[324824897,1714350640609,-1563.55,0.00012898,2]
[324824899,1714350640618,-500.0,0.00012898,2]
[324824901,1714350640627,-500.0,0.00012898,2]
[324824903,1714350640636,-500.0,0.00012898,2]
[324824905,1714350640645,-500.0,0.00012898,2]
[324824907,1714350640654,-500.0,0.00012898,2]
[324824909,1714350640663,-500.0,0.00012898,2]
[324824911,1714350640672,-500.0,0.00012898,2]
[324824913,1714350640681,-674.5,0.00012898,2]
[324824915,1714350640690,-500.0,0.00012898,2]
[324824917,1714350640699,-500.0,0.00012898,2]
[324824919,1714350640708,-560.67,0.00012898,2]
[324824921,1714350640718,-500.0,0.00012898,2]
[324824923,1714350640728,-500.0,0.00012898,2]
[324824925,1714350640736,-500.0,0.00012898,2]
[324824927,1714350640745,-2702.86,0.00012898,2]
[324824929,1714350640754,-500.0,0.00012898,2]
[324824931,1714350640764,-500.0,0.00012898,2]
[324824933,1714350640773,-500.0,0.00012898,2]
[324824935,1714350640782,-500.0,0.00012898,2]
[324824937,1714350640791,-500.0,0.00012898,2]
[324824939,1714350640800,-500.0,0.00012898,2]
[324824941,1714350640809,-500.0,0.00012898,2]
[324824943,1714350640818,-500.0,0.00012898,2]
[324824945,1714350640827,-500.0,0.00012898,2]
[324824947,1714350640836,-500.0,0.00012898,2]
[324824949,1714350640845,-500.0,0.00012898,2]
[324824950,1714350640854,-500.0,0.00012898,2]
[324824952,1714350640864,-500.0,0.00012898,2]
[324824954,1714350640876,-500.0,0.00012898,2]
[324824956,1714350640885,-500.0,0.00012898,2]
[324824958,1714350640895,-500.0,0.00012898,2]
[324824960,1714350640903,-500.0,0.00012898,2]
[324824962,1714350640914,-500.0,0.00012898,2]
[324824964,1714350640922,-500.0,0.00012898,2]
[324824966,1714350640931,-453.0094624,0.00012898,2]
[324824968,1714350640940,-1235.54,0.00012898,2]
[324824970,1714350640952,-500.0,0.00012898,2]
[324824972,1714350640962,-1104.53,0.00012898,2]
[324824974,1714350640972,-500.0,0.00012898,2]
[324824976,1714350640980,-500.0,0.00012898,2]
[324824978,1714350640990,-500.0,0.00012898,2]
[324824980,1714350640998,-958.04,0.00012898,2]
[324824982,1714350641006,-500.0,0.00012898,2]
[324824984,1714350641014,-1180.81,0.00012898,2]
[324824985,1714350641022,-3038.03,0.00012898,2]
[324824987,1714350641030,-500.0,0.00012898,2]
[324824989,1714350641039,-1038.25,0.00012898,2]
[324824991,1714350641048,-774.76,0.00012898,2]
[324824993,1714350641057,-500.0,0.00012898,2]
[324824995,1714350641066,-500.0,0.00012898,2]
[324824997,1714350641075,-500.0,0.00012898,2]
[324824999,1714350641084,-1194.75,0.00012898,2]
[324825001,1714350641094,-500.0,0.00012898,2]
[324825003,1714350641103,-664.36,0.00012898,2]
[324825005,1714350641114,-500.0,0.00012898,2]
[324825007,1714350641123,-874.71,0.00012898,2]
[324825009,1714350641132,-537.61,0.00012898,2]
[324825011,1714350641141,-500.0,0.00012898,2]
[324825013,1714350641150,-556.26,0.00012898,2]
[324825015,1714350641159,-500.0,0.00012898,2]
[324825017,1714350641168,-500.0,0.00012898,2]
[324825019,1714350641177,-2642.31,0.00012898,2]
[324825020,1714350641186,-500.0,0.00012898,2]
[324825021,1714350641195,-500.0,0.00012898,2]
[324825022,1714350641204,-500.0,0.00012898,2]
[324825023,1714350641216,-2774.7,0.00012898,2]
[324825024,1714350641225,-500.0,0.00012898,2]
[324825025,1714350641234,-995.57,0.00012898,2]
[324825026,1714350641243,-500.0,0.00012898,2]
[324825027,1714350641252,-500.0,0.00012898,2]
[324825028,1714350641261,-500.0,0.00012898,2]
[324825029,1714350641271,-500.0,0.00012898,2]
[324825030,1714350641280,-500.0,0.00012898,2]
[324825031,1714350641289,-500.0,0.00012898,2]
[324825032,1714350641298,-500.0,0.00012898,2]
[324825033,1714350641307,-500.0,0.00012898,2]
[324825034,1714350641316,-500.0,0.00012898,2]
[324825035,1714350641325,-500.0,0.00012898,2]
[324825036,1714350641334,-500.0,0.00012898,2]
[324825037,1714350641343,-500.0,0.00012898,2]
[324825038,1714350641352,-500.0,0.00012898,2]
[324825039,1714350641361,-500.0,0.00012898,2]
[324825040,1714350641370,-500.0,0.00012898,2]
[324825041,1714350641379,-10000.0,0.00012899,2]
[324825042,1714350641388,-1000.0,0.00012899,2]
[324825043,1714350641398,-500.0,0.00012899,2]
[324825044,1714350641407,-206.47,0.00012899,2]
[324825045,1714350641416,-500.0,0.00012899,2]
[324825046,1714350641425,-378.68,0.00012899,2]
[324825047,1714350641434,-500.0,0.00012899,2]
[324825048,1714350641443,-3092.88,0.00012899,2]
[324825049,1714350641452,-500.0,0.00012899,2]
[324825050,1714350641461,-648.44,0.00012899,2]
[324825051,1714350641472,-500.0,0.00012899,2]
[324825052,1714350641481,-500.0,0.00012899,2]
[324825053,1714350641490,-500.0,0.00012899,2]
[324825054,1714350641499,-500.0,0.00012899,2]
[324825055,1714350641508,-500.0,0.00012899,2]
[324825056,1714350641519,-478.92166455,0.00012899,2]
[324825057,1714350641528,-500.0,0.00012899,2]
[324825058,1714350641537,-500.0,0.00012899,2]
[324825059,1714350641546,-575.45,0.00012899,2]
[324825060,1714350641555,-500.0,0.00012899,2]
[324825061,1714350641564,-500.0,0.00012899,2]
[324825062,1714350641573,-500.0,0.00012899,2]
[324825063,1714350641583,-500.0,0.00012899,2]
[324825064,1714350641593,-500.0,0.00012899,2]
[324825065,1714350641602,-500.0,0.00012899,2]
[324825066,1714350641611,-500.0,0.00012899,2]
[324825067,1714350641621,-500.0,0.00012899,2]
[324825068,1714350641630,-500.0,0.00012899,2]
[324825069,1714350641639,-500.0,0.00012899,2]
[324825070,1714350641649,-235.34,0.00012899,2]
[324825071,1714350641658,-151.61,0.00012899,2]
[324825072,1714350641667,-500.0,0.00012899,2]
[324825073,1714350641676,-422.90417892,0.00012899,2]
[324825074,1714350641686,-500.0,0.00012899,2]
[324825075,1714350641695,-500.0,0.00012899,2]
[324825076,1714350641704,-500.0,0.00012899,2]
[324825077,1714350641715,-500.0,0.00012899,2]
[324825078,1714350641724,-539.44098543,0.00012899,2]
[324825079,1714350641733,-500.0,0.00012899,2]
[324825080,1714350641743,-500.0,0.00012899,2]
[324825081,1714350641752,-500.0,0.00012899,2]
[324825082,1714350641761,-500.0,0.00012899,2]
[324825083,1714350641770,-610.33580195,0.00012899,2]
[324825084,1714350641779,-500.0,0.00012899,2]
[324825085,1714350641789,-500.0,0.00012899,2]
[324825086,1714350641798,-500.0,0.00012899,2]
[324825087,1714350641807,-551.54,0.00012899,2]
[324825088,1714350641816,-500.0,0.00012899,2]
[324825089,1714350641825,-500.0,0.00012899,2]
[324825090,1714350641834,-500.0,0.00012899,2]
[324825091,1714350641844,-500.0,0.00012899,2]
[324825092,1714350641853,-232.22,0.00012899,2]
[324825093,1714350641864,-500.0,0.00012899,2]
[324825094,1714350641875,-500.0,0.00012899,2]
[324825095,1714350641884,-150.0,0.00012899,2]
[324825096,1714350641893,-200.54,0.00012899,2]
[324825097,1714350641902,-269.03,0.00012899,2]
[324825098,1714350641913,-500.0,0.00012899,2]
[324825099,1714350641922,-500.0,0.00012899,2]
[324825100,1714350641931,-579.35,0.00012899,2]
[324825101,1714350641941,-578.46,0.00012899,2]
[324825102,1714350641950,-584.13801515,0.00012899,2]
[324825103,1714350641959,-178.97,0.00012899,2]
[324825104,1714350641969,-500.0,0.00012899,2]
[324825105,1714350641978,-500.0,0.00012899,2]
[324825106,1714350641987,-622.9,0.00012899,2]
[324825107,1714350641996,-554.2,0.00012899,2]
[324825108,1714350642005,-500.0,0.00012899,2]
[324825109,1714350642014,-500.0,0.00012899,2]
[324825110,1714350642023,-500.0,0.00012899,2]
[324825111,1714350642032,-500.0,0.00012899,2]
[324825112,1714350642040,-500.0,0.00012899,2]
[324825113,1714350642050,-500.0,0.00012899,2]
[324825114,1714350642058,-500.0,0.00012899,2]
[324825115,1714350642067,-500.0,0.00012899,2]
[324825116,1714350642077,-500.0,0.00012899,2]
[324825117,1714350642086,-500.0,0.00012899,2]
[324825118,1714350642095,-500.0,0.00012899,2]
[324825119,1714350642104,-500.0,0.00012899,2]
[324825120,1714350642113,-500.0,0.00012899,2]
[324825121,1714350642122,-459.50149669,0.00012899,2]
[324825122,1714350642131,-500.0,0.00012899,2]
[324825123,1714350642139,-500.0,0.00012899,2]
[324825124,1714350642149,-208.13,0.00012899,2]
[324825125,1714350642158,-500.0,0.00012899,2]
[324825126,1714350642167,-500.0,0.00012899,2]
[324825127,1714350642176,-500.0,0.00012899,2]
[324825128,1714350642184,-632.48,0.00012899,2]
[324825129,1714350642193,-500.0,0.00012899,2]
[324825130,1714350642202,-500.0,0.00012899,2]
[324825131,1714350642211,-500.0,0.00012899,2]
[324825132,1714350642222,-500.0,0.00012899,2]
[324825133,1714350642232,-619.56,0.00012899,2]
[324825134,1714350642242,-372.13734902,0.00012899,2]
[324825135,1714350642252,-500.0,0.00012899,2]
[324825136,1714350642261,-500.0,0.00012899,2]
[324825137,1714350642270,-500.0,0.00012899,2]
[324825138,1714350642279,-455.0428049,0.00012899,2]
[324825139,1714350642288,-500.0,0.00012899,2]
[324825140,1714350642297,-489.82,0.00012899,2]
[324825141,1714350642306,-500.0,0.00012899,2]
[324825142,1714350642315,-500.0,0.00012899,2]
[324825143,1714350642325,-199.76219593,0.00012899,2]
[324825144,1714350642334,-500.0,0.00012899,2]
[324825145,1714350642343,-520.79,0.00012899,2]
[324825146,1714350642352,-501.34966844,0.00012899,2]
[324825147,1714350642361,-500.0,0.00012899,2]
[324825148,1714350642370,-500.0,0.00012899,2]
[324825149,1714350642379,-500.0,0.00012899,2]
[324825150,1714350642388,-500.0,0.00012899,2]
[324825151,1714350642398,-500.0,0.00012899,2]
[324825152,1714350642407,-500.0,0.00012899,2]
[324825153,1714350642416,-500.0,0.00012899,2]
[324825154,1714350642425,-500.0,0.00012899,2]
[324825155,1714350642435,-537.6,0.00012899,2]
[324825156,1714350642444,-500.0,0.00012899,2]
[324825157,1714350642453,-500.0,0.00012899,2]
[324825158,1714350642462,-500.0,0.00012899,2]
[324825159,1714350642472,-500.0,0.00012899,2]
[324825160,1714350642482,-500.0,0.00012899,2]
[324825161,1714350642491,-500.0,0.00012899,2]
[324825162,1714350642500,-500.0,0.00012899,2]
[324825163,1714350642509,-723.2,0.00012899,2]
[324825164,1714350642519,-500.0,0.00012899,2]
[324825165,1714350642528,-500.0,0.00012899,2]
[324825166,1714350642537,-500.0,0.00012899,2]
[324825167,1714350642548,-500.0,0.00012899,2]
[324825176,1714350642726,-500.0,0.00012899,2]
[324825178,1714350642736,-500.0,0.00012899,2]
[324825180,1714350642746,-500.0,0.00012899,2]
[324825181,1714350642756,-500.0,0.00012899,2]
[324825182,1714350642766,-500.0,0.00012899,2]
[324825183,1714350642776,-500.0,0.00012899,2]
[324825185,1714350642787,-500.0,0.00012899,2]
[324825187,1714350642798,-500.0,0.00012899,2]
[324825188,1714350642808,-500.0,0.00012899,2]
[324825189,1714350642820,-500.0,0.00012899,2]
[324825191,1714350642830,-500.0,0.00012899,2]
[324825193,1714350642840,-500.0,0.00012899,2]
[324825194,1714350642850,-1050.13,0.00012899,2]
[324825195,1714350642860,-500.0,0.00012899,2]
[324825196,1714350642871,-272.72,0.00012899,2]
[324825197,1714350642883,-500.0,0.00012899,2]
[324825198,1714350642892,-213.36047707,0.00012899,2]
[324825199,1714350642901,-9680.65,0.00012899,2]
[324825200,1714350642911,-500.0,0.00012899,2]
[324825201,1714350642922,-371.37,0.00012899,2]
[324825202,1714350642932,-500.0,0.00012899,2]
[324825203,1714350642944,-500.0,0.00012899,2]
[324825204,1714350642955,-500.0,0.00012899,2]
[324825205,1714350642966,-500.0,0.00012899,2]
[324825206,1714350642975,-500.0,0.00012899,2]
[324825207,1714350642984,-500.0,0.00012899,2]
[324825208,1714350642993,-1914.22,0.00012899,2]
[324825209,1714350643002,-500.0,0.00012899,2]
[324825210,1714350643011,-500.0,0.00012899,2]
[324825211,1714350643020,-500.0,0.00012899,2]
[324825212,1714350643031,-500.0,0.00012899,2]
[324825213,1714350643041,-500.0,0.00012899,2]
[324825214,1714350643050,-500.0,0.00012899,2]
[324825215,1714350643060,-3019.2,0.00012899,2]
[324825216,1714350643072,-635.79,0.00012899,2]
[324825217,1714350643082,-500.0,0.00012899,2]
[324825218,1714350643091,-500.0,0.00012899,2]
[324825219,1714350643099,-500.0,0.00012899,2]
[324825220,1714350643109,-217.27,0.00012899,2]
[324825221,1714350643118,-432.09,0.00012899,2]
[324825222,1714350643127,-500.0,0.00012899,2]
[324825223,1714350643136,-500.0,0.00012899,2]
[324825224,1714350643146,-500.0,0.00012899,2]
[324825225,1714350643156,-500.0,0.00012899,2]
[324825226,1714350643165,-500.0,0.00012899,2]
[324825227,1714350643174,-500.0,0.00012899,2]
[324825228,1714350643183,-500.0,0.00012899,2]
[324825229,1714350643191,-500.0,0.00012899,2]
[324825230,1714350643200,-500.0,0.00012899,2]
[324825231,1714350643209,-641.15,0.00012899,2]
[324825232,1714350643220,-619.33978455,0.00012899,2]
[324825233,1714350643229,-500.0,0.00012899,2]
[324825234,1714350643238,-227.9822275,0.00012899,2]
[324825235,1714350643247,-500.0,0.00012899,2]
[324825236,1714350643257,-181.38160287,0.000129,2]
[324825237,1714350643266,-12808.95756363,0.000129,2]
[324825238,1714350643282,-4287.66451703,0.000129,2]
[324825239,1714350643293,-330.6464705,0.000129,2]
[324825240,1714350643306,-2642.15021336,0.000129,2]
[324825245,1714350643483,-500.0,0.00012879,2]
[324825246,1714350643493,-955.0,0.000129,2]
[324825247,1714350643516,-4657.49054948,0.000129,2]
[324825248,1714350643526,-32815.7715,0.000129,2]
[324825249,1714350643535,-46813.89084881,0.000129,2]
[324825250,1714350643547,-3234.56787141,0.000129,2]
[324825251,1714350643560,-862.0099998,0.000129,2]
[324825252,1714350643582,-5282.90757998,0.000129,2]
[324825253,1714350643593,-1053.69242002,0.000129,2]
[324825254,1714350643613,-1370.79607998,0.000129,2]
[324825255,1714350643623,-375.60552595,0.000129,2]
[324825256,1714350643633,-93.18690353,0.000129,2]
[324825257,1714350643646,-595.7260373,0.000129,2]
[324825258,1714350643656,-781.0285027,0.000129,2]
[324825259,1714350643677,-3465.7968536,0.000129,2]
[324825260,1714350643698,-1716.24579306,0.000129,2]
[324825264,1714350646041,-500.0,0.00012879,2]
[324825265,1714350646051,-163.89953157,0.00012896,2]
[324825266,1714350646060,-787.56352096,0.00012897,2]
[324825267,1714350646070,-409.24645721,0.00012897,2]
[324825268,1714350646079,-500.0,0.00012898,2]
[324825269,1714350646088,-207.98013381,0.00012899,2]
[324825270,1714350646097,-4159.51035645,0.000129,2]
[324825338,1714351832039,-400.41262171,9.659e-05,2]